bitfinex-derivatives/quotes_ETHF0:USTF0_20241102
["timestamp","ask_amount","ask_price","bid_price","bid_amount"]
[1730547938360,3.14231187,2505.7,2505.6,0.27947]
[1730547938662,1.43843443,2505.7,2505.6,0.27947]
[1730547938861,5.10446494,2505.7,2505.6,0.27947]
[1730547939053,5.52396494,2505.7,2505.6,0.27947]
[1730547940559,1.85793443,2505.7,2505.6,0.27947]
[1730547940860,6.87383051,2505.8,2505.7,0.27946]
[1730547941058,3.14056082,2505.9,2505.7,3.9912]
[1730547941266,3.14056082,2506.0,2505.8,6.01326341]
[1730547941460,3.58846082,2506.1,2506.0,0.27942]
[1730547941763,5.02689525,2506.1,2506.0,0.27942]
[1730547943160,5.02667653,2506.1,2506.0,0.27942]
[1730547943360,5.55236494,2506.1,2506.0,0.27942]
[1730547946365,1.88633443,2506.1,2506.0,0.27942]
[1730547948472,5.55236494,2506.1,2506.0,0.27942]
[1730547948668,1.88633443,2506.1,2506.0,0.27942]
[1730547949167,5.55236494,2506.1,2506.0,0.27942]
[1730547950063,1.88633443,2506.1,2506.0,0.27942]
[1730547950563,5.55236494,2506.1,2506.0,0.27942]
[1730547951163,1.88633443,2506.1,2506.0,0.27942]
[1730547951670,5.55236494,2506.1,2506.0,0.27942]
[1730547952065,0.4479,2506.1,2506.0,0.27942]
[1730547952371,3.14043509,2506.1,2506.0,0.27942]
[1730547953568,3.59553509,2506.2,2506.1,0.27941]
[1730547953959,3.14043509,2506.2,2506.1,0.27941]
[1730547954858,3.14028034,2506.2,2506.0,0.27942]
[1730547955060,3.14028034,2506.2,2506.1,0.74181]
[1730547957667,3.6636604,2506.2,2506.1,0.74181]
[1730547958656,4.1051604,2506.3,2506.2,0.2794]
[1730547963672,0.4415,2506.3,2506.2,0.2794]
[1730547963873,4.1051604,2506.3,2506.2,0.2794]
[1730547964677,0.4415,2506.3,2506.2,0.2794]
[1730547966177,3.58094445,2506.3,2506.2,0.2794]
[1730547972575,4.1051604,2506.3,2506.2,0.2794]
[1730547975172,3.57999261,2506.3,2506.2,0.2794]
[1730547975380,3.57999261,2506.3,2506.2,0.7376]
[1730547976181,3.57999261,2506.3,2506.2,4.728]
[1730547976374,3.13849261,2506.3,2506.2,4.728]
[1730547978972,3.13849261,2506.3,2506.2,4.2698]
[1730547979573,4.5521604,2506.4,2506.2,4.2698]
[1730547979574,7.69065301,2506.4,2506.2,3.9904]
[1730547979780,4.02699261,2506.4,2506.3,0.27939]
[1730547981378,2.32693443,2506.4,2506.3,0.27939]
[1730547983882,5.46542704,2506.4,2506.3,0.27939]
[1730547986480,2.32693443,2506.4,2506.3,0.27939]
[1730547990482,5.99059483,2506.4,2506.3,0.27939]
[1730547991090,2.32693443,2506.4,2506.3,0.27939]
[1730547991986,0.8885,2506.4,2506.3,0.27939]
[1730547993986,4.5521604,2506.4,2506.3,0.27939]
[1730547994788,0.8885,2506.4,2506.3,0.27939]
[1730547995582,5.07824916,2506.4,2506.3,0.27939]
[1730547997396,5.07824916,2506.4,2506.3,0.86427723]
[1730547997797,5.07824916,2506.4,2506.3,0.27939]
[1730547997994,5.07824916,2506.4,2506.3,0.86433451]
[1730548001804,0.8885,2506.4,2506.3,0.86433451]
[1730548001998,0.8885,2506.4,2506.3,0.27939]
[1730548002693,4.55443277,2506.4,2506.3,0.27939]
[1730548002894,0.8885,2506.4,2506.3,0.27939]
[1730548003101,4.55443277,2506.4,2506.3,0.27939]
[1730548006311,0.8885,2506.4,2506.3,0.27939]
[1730548007203,4.55443277,2506.4,2506.3,0.27939]
[1730548008106,0.8885,2506.4,2506.3,0.27939]
[1730548008813,5.5557672,2506.5,2506.1,0.69853]
[1730548009016,8.6744599,2506.7,2506.3,1.43843443]
[1730548009213,3.2078,2506.8,2506.3,1.43843443]
[1730548009214,1.77537684,2506.8,2506.5,2.48215788]
[1730548009410,1.77537684,2506.8,2506.4,6.01319857]
[1730548009411,0.4295,2507.0,2506.7,4.64623443]
[1730548009611,0.4295,2507.0,2506.9,0.27932]
[1730548009912,0.4295,2507.0,2506.9,0.86427489]
[1730548011216,0.4295,2507.0,2506.9,2.30270932]
[1730548012023,0.4295,2507.0,2506.9,6.29150932]
[1730548012716,0.4295,2507.0,2506.9,6.28997675]
[1730548012921,0.4295,2507.0,2506.9,2.30117675]
[1730548013220,0.4295,2507.0,2506.9,0.86274232]
[1730548013424,0.4295,2507.0,2506.9,0.86260683]
[1730548013610,1.86793443,2507.0,2506.9,0.27932]
[1730548013815,1.86793443,2507.0,2506.5,2.94983443]
[1730548014018,2.14724443,2507.0,2506.9,0.26638867]
[1730548014415,1.86793443,2507.0,2506.9,0.26638867]
[1730548015111,2.14724443,2507.0,2506.9,0.26638867]
[1730548017021,0.27933,2506.8,2506.7,0.27934]
[1730548017222,1.71776443,2506.8,2506.7,0.27934]
[1730548018829,2.13656443,2506.8,2506.7,0.27934]
[1730548019231,4.99931728,2506.8,2506.7,0.27934]
[1730548020929,3.56088285,2506.8,2506.7,0.27934]
[1730548021327,0.4188,2506.8,2506.7,0.27934]
[1730548021529,3.56088285,2506.8,2506.7,0.27934]
[1730548022622,0.4188,2506.8,2506.7,0.27934]
[1730548023524,7.28526886,2506.8,2505.7,3.10246561]
[1730548023829,1.43843443,2506.1,2506.0,0.27942]
[1730548024331,3.58548285,2506.2,2506.1,0.27941]
[1730548024924,0.7228,2506.2,2506.1,0.27941]
[1730548025125,3.58548285,2506.2,2506.1,0.27941]
[1730548026732,4.45398285,2506.2,2506.1,0.27941]
[1730548027737,1.3119,2506.2,2506.1,0.27941]
[1730548030436,2.75033443,2506.2,2505.7,1.43843443]
[1730548030739,1.71785443,2506.0,2505.9,0.27943]
[1730548031139,1.43843443,2506.0,2505.9,0.27943]
[1730548031535,1.71784443,2506.1,2506.0,0.27942]
[1730548037844,1.43843443,2506.1,2505.6,0.2791]
[1730548038153,2.60933408,2506.0,2505.9,0.27943]
[1730548038336,0.27943,2505.9,2505.8,0.27944]
[1730548038536,0.27943,2505.9,2505.4,0.27949]
[1730548038537,0.27946,2505.7,2505.4,0.27949]
[1730548038741,0.9182,2505.6,2505.5,0.27948]
[1730548039043,1.3565,2505.6,2505.5,0.27948]
[1730548039348,3.44403566,2505.6,2505.5,0.27948]
[1730548044551,1.3565,2505.6,2505.5,0.27948]
[1730548049447,2.08753566,2505.8,2505.5,4.27068]
[1730548049643,2.08753566,2505.8,2505.7,0.27946]
[1730548050444,2.08753566,2506.0,2505.7,5.42963443]
[1730548050746,5.29533566,2506.2,2506.1,0.27941]
[1730548050944,3.2078,2506.2,2506.1,0.27941]
[1730548051746,3.4872,2506.2,2506.1,0.27941]
[1730548054049,4.92563443,2506.2,2506.1,0.27941]
[1730548054757,4.64623443,2506.2,2506.1,0.27941]
[1730548055450,6.73377009,2506.2,2506.1,0.27941]
[1730548055841,4.64623443,2506.2,2506.1,0.27941]
[1730548056553,6.73377009,2506.2,2506.1,0.27941]
[1730548057449,3.52597009,2506.2,2506.1,0.27941]
[1730548057649,6.73377009,2506.2,2506.1,0.27941]
[1730548057958,3.52597009,2506.2,2506.1,0.27941]
[1730548058449,3.2078,2506.2,2506.1,0.27941]
[1730548058657,5.29396101,2506.2,2506.1,0.27941]
[1730548059045,3.2078,2506.2,2506.1,0.27941]
[1730548059248,5.29396101,2506.2,2506.1,0.27941]
[1730548060060,2.08616101,2506.2,2506.1,0.27941]
[1730548063451,3.93113872,2506.3,2506.0,1.43843443]
[1730548063661,2.08833405,2506.1,2506.0,1.71785443]
[1730548068266,1.3218,2506.3,2506.2,0.2794]
[1730548072464,3.2078,2506.6,2506.2,5.42883443]
[1730548072761,0.8956,2506.7,2506.6,0.27936]
[1730548073160,0.8956,2506.7,2506.6,4.26896]
[1730548073756,1.3205,2506.7,2506.6,4.26896]
[1730548074160,1.3205,2506.7,2506.6,5.70739443]
[1730548074357,4.70389428,2507.0,2506.6,8.63583443]
[1730548074568,1.308,2506.9,2506.7,4.26894]
[1730548076157,0.4525,2506.9,2506.7,4.26894]
[1730548077063,0.4525,2506.9,2506.7,5.70737443]
[1730548084670,0.4525,2506.9,2506.8,0.27933]
[1730548084671,2.54090131,2506.9,2506.8,0.27933]
[1730548085070,2.54090131,2506.9,2506.8,4.26813]
[1730548088175,0.4525,2506.9,2506.8,4.26813]
[1730548088376,2.54090131,2506.9,2506.8,4.26813]
[1730548088676,0.4525,2506.9,2506.8,4.26813]
[1730548089566,2.54090131,2506.9,2506.8,4.26813]
[1730548090582,0.4525,2506.9,2506.8,4.26813]
[1730548101282,0.4525,2506.9,2506.8,0.27933]
[1730548101475,0.4525,2506.9,2506.8,4.26813]
[1730548102179,0.4525,2506.9,2506.8,0.27933]
[1730548102379,0.4525,2506.9,2506.8,4.26813]
[1730548106490,2.54090131,2506.9,2506.8,4.26813]
[1730548107687,0.4525,2506.9,2506.8,4.26813]
[1730548108281,2.61050164,2507.2,2506.9,3.9888]
[1730548108483,3.05480164,2507.3,2507.2,0.27929]
[1730548108683,0.4443,2507.3,2507.2,0.27929]
[1730548110996,3.05480164,2507.3,2507.2,0.27929]
[1730548111490,0.4443,2507.3,2507.2,0.27929]
[1730548112890,3.05907691,2507.3,2507.2,0.27929]
[1730548113189,0.4443,2507.3,2507.2,0.27929]
[1730548116693,0.4443,2507.3,2507.2,0.86185864]
[1730548122291,0.4443,2507.3,2507.2,0.27929]
[1730548123897,3.05792337,2507.3,2507.2,0.27929]
[1730548125587,0.4443,2507.3,2507.2,0.27929]
[1730548126498,4.4331,2507.3,2507.0,4.64623443]
[1730548126692,0.4443,2507.3,2507.2,0.27929]
[1730548127095,4.4331,2507.3,2507.2,0.27929]
[1730548127994,7.56570197,2507.3,2507.2,0.27929]
[1730548128492,4.4331,2507.3,2507.2,0.27929]
[1730548129294,7.56570197,2507.3,2507.2,0.27929]
[1730548131799,4.4331,2507.3,2507.2,0.27929]
[1730548131996,7.56570197,2507.3,2507.2,0.27929]
[1730548136205,3.57690197,2507.3,2507.2,0.27929]
[1730548136902,7.56570197,2507.3,2507.2,0.27929]
[1730548138803,8.0878023,2507.3,2507.2,0.27929]
[1730548141005,8.3670823,2507.3,2507.2,0.27929]
[1730548144210,0.2793,2507.2,2507.0,3.2078]
[1730548144413,0.2793,2507.2,2507.0,0.27931]
[1730548144414,1.71774443,2507.1,2507.0,0.27931]
[1730548144604,5.90749359,2507.1,2507.0,0.27931]
[1730548144807,9.89629359,2507.1,2507.0,0.27931]
[1730548145012,0.27932,2507.0,2506.9,0.27931]
[1730548145212,5.25601909,2507.0,2506.9,0.27931]
[1730548145408,4.97669909,2507.0,2506.9,0.27931]
[1730548145809,1.3147,2507.0,2506.9,0.27931]
[1730548146217,8.4415555,2507.0,2506.9,0.27931]
[1730548146609,5.3035,2507.0,2506.9,0.27931]
[1730548147112,4.4527555,2507.0,2506.9,0.27931]
[1730548147328,8.4415555,2507.0,2506.9,0.27931]
[1730548148205,1.3147,2507.0,2506.9,0.27931]
[1730548148703,3.1380555,2507.1,2507.0,0.27931]
[1730548148907,4.0083555,2507.1,2507.0,0.27931]
[1730548156113,4.2876555,2507.1,2507.0,0.27931]
[1730548156724,1.1496,2507.1,2507.0,0.27931]
[1730548156924,0.8703,2507.1,2507.0,0.27931]
[1730548157122,4.0083555,2507.1,2507.0,0.27931]
[1730548158019,0.8703,2507.1,2507.0,0.27931]
[1730548158223,4.0083555,2507.1,2507.0,0.27931]
[1730548159515,0.8703,2507.1,2507.0,0.27931]
[1730548159713,4.0083555,2507.1,2507.0,0.27931]
[1730548159911,1.1496,2507.1,2507.0,0.27931]
[1730548160117,4.2876555,2507.1,2507.0,0.27931]
[1730548160819,1.1496,2507.1,2507.0,0.27931]
[1730548161522,2.58803443,2507.1,2507.0,0.27931]
[1730548161830,6.57683443,2507.1,2507.0,0.27931]
[1730548162015,10.23883352,2507.1,2507.0,0.27931]
[1730548162422,10.23883352,2507.1,2506.9,0.27931]
[1730548162423,0.27932,2507.0,2506.9,0.27931]
[1730548163325,0.27933,2506.9,2506.8,0.27933]
[1730548163529,3.94132909,2506.9,2506.8,0.27933]
[1730548164126,0.27934,2506.8,2506.7,0.27934]
[1730548164328,1.14984,2506.8,2506.7,0.27934]
[1730548164532,4.75623909,2506.8,2506.7,0.27934]
[1730548164934,4.70063909,2506.8,2506.7,0.27934]
[1730548167231,0.27935,2506.7,2506.6,0.27935]
[1730548167431,2.16948443,2506.7,2506.6,0.27935]
[1730548167631,0.27936,2506.6,2506.5,0.27936]
[1730548167832,3.4157511,2506.6,2506.5,0.27936]
[1730548168032,0.27936,2506.6,2506.5,0.27936]
[1730548168235,3.41518823,2506.6,2506.5,0.27936]
[1730548168432,7.40478823,2506.6,2506.5,0.27936]
[1730548171231,8.84322266,2506.6,2506.5,0.27936]
[1730548171436,0.27937,2506.5,2506.4,0.27937]
[1730548171637,0.27938,2506.4,2506.3,0.27938]
[1730548171837,2.14981443,2506.4,2506.3,0.27938]
[1730548172039,6.13941443,2506.4,2506.3,0.27938]
[1730548173740,9.06783443,2506.4,2506.0,1.43843443]
[1730548173939,2.61205171,2506.1,2506.0,1.71785443]
[1730548175234,2.61205171,2506.1,2506.0,0.27942]
[1730548175235,1.43843443,2506.1,2506.0,0.27942]
[1730548175437,1.71784443,2506.1,2506.0,0.27942]
[1730548175641,1.43843443,2506.1,2506.0,0.27942]
[1730548176034,4.04950548,2506.1,2506.0,0.27942]
[1730548178134,0.27942,2506.0,2505.9,0.27943]
[1730548178346,1.86853443,2506.0,2505.7,1.43843443]
[1730548178640,0.8845,2505.9,2505.8,0.27944]
[1730548180641,0.4401,2505.9,2505.8,0.27944]
[1730548181042,1.86853443,2506.0,2505.9,0.27943]
[1730548181241,1.42843443,2506.0,2505.9,0.27943]
[1730548181442,4.04767838,2506.1,2506.0,0.27942]
[1730548181641,2.60924395,2506.1,2506.0,0.27942]
[1730548181842,6.59964395,2506.1,2506.0,0.27942]
[1730548182245,3.9904,2506.1,2506.0,0.27942]
[1730548182643,6.59964395,2506.1,2506.0,0.27942]
[1730548183039,3.9904,2506.1,2506.0,0.27942]
[1730548183249,3.9904,2506.1,2505.8,1.71783443]
[1730548183448,4.04767838,2506.2,2506.1,0.27941]
[1730548183950,8.03807838,2506.2,2506.1,0.27941]
[1730548184145,8.96117838,2506.2,2506.1,0.27941]
[1730548184352,9.24057838,2506.2,2506.1,0.27941]
[1730548184643,9.69097838,2506.2,2506.1,0.27941]
[1730548188149,12.89877838,2506.2,2506.1,0.27941]
[1730548188752,0.27942,2506.1,2506.0,0.27941]
[1730548188956,4.32466705,2506.1,2506.0,0.27941]
[1730548189143,8.31506705,2506.1,2506.0,0.27941]
[1730548189853,8.03564705,2506.1,2506.0,0.27941]
[1730548190056,5.42883443,2506.1,2506.0,0.27941]
[1730548190347,4.04524705,2506.1,2506.0,0.27941]
[1730548191852,4.32465705,2506.1,2506.0,0.27941]
[1730548192050,8.31505705,2506.1,2506.0,0.27941]
[1730548192249,4.32465705,2506.1,2506.0,0.27941]
[1730548192955,4.32465705,2506.1,2505.6,0.4262]
[1730548192956,0.27943,2506.0,2505.9,0.27943]
[1730548193152,4.32467705,2506.0,2505.9,0.27943]
[1730548193849,8.03564705,2506.0,2505.6,0.8724]
[1730548194055,1.71788443,2505.8,2505.7,0.27945]
[1730548194354,1.43843443,2505.8,2505.7,0.27945]
[1730548196150,1.71787443,2505.8,2505.7,0.27945]
[1730548196351,2.60647443,2505.8,2505.7,0.27945]
[1730548196557,2.32703443,2505.8,2505.7,0.27945]
[1730548199459,2.60647443,2505.8,2505.7,0.27945]
[1730548199959,2.32703443,2505.8,2505.7,0.27945]
[1730548200357,2.60647443,2505.8,2505.7,0.27945]
[1730548201365,2.32703443,2505.8,2505.7,0.27945]
[1730548204361,4.93384705,2505.8,2505.7,0.27945]
[1730548205366,2.60681262,2505.8,2505.7,0.27945]
[1730548205571,2.60681262,2505.9,2505.7,0.4405]
[1730548205769,2.60681262,2505.9,2505.8,0.27944]
[1730548208367,3.48723,2506.0,2505.7,0.4405]
[1730548208368,3.48723,2506.0,2505.9,0.27943]
[1730548208570,3.2078,2506.0,2505.9,0.27943]
[1730548211674,5.27967266,2506.1,2506.0,0.27942]
[1730548211873,8.48747266,2506.1,2506.0,0.27942]
[1730548212571,5.27967266,2506.1,2506.0,0.27942]
[1730548212876,8.48747266,2506.1,2506.0,0.27942]
[1730548213171,5.35164443,2506.1,2506.0,0.27942]
[1730548215174,9.01364352,2506.1,2506.0,0.27942]
[1730548215373,5.35164443,2506.1,2506.0,0.27942]
[1730548216283,5.80584352,2506.1,2506.0,0.27942]
[1730548216776,9.01364352,2506.1,2506.0,0.27942]
[1730548217878,5.80584352,2506.1,2506.0,0.27942]
[1730548218083,9.01364352,2506.1,2506.0,0.27942]
[1730548218475,5.35164443,2506.1,2506.0,0.27942]
[1730548218679,9.01528485,2506.1,2506.0,0.27942]
[1730548219082,5.35164443,2506.1,2506.0,0.27942]
[1730548219282,5.35164443,2506.1,2505.5,0.4236]
[1730548219283,9.06263443,2506.1,2505.5,0.4236]
[1730548219578,4.5793483,2505.8,2505.7,0.27946]
[1730548219985,5.8636483,2505.8,2505.7,0.27946]
[1730548220177,4.42521387,2505.8,2505.7,0.86371469]
[1730548220383,3.57971387,2505.8,2505.7,0.86371469]
[1730548220584,3.14091387,2505.8,2505.7,0.86371469]
[1730548220783,3.14091387,2505.8,2505.7,1.29061469]
[1730548221081,3.14091387,2505.8,2505.7,2.72904912]
[1730548221282,3.14153148,2505.9,2505.8,0.27944]
[1730548221587,3.14153148,2505.9,2505.8,0.86369469]
[1730548221882,3.14153148,2505.9,2505.8,0.86368677]
[1730548225893,3.14153148,2505.9,2505.8,0.86375783]
[1730548228387,3.14153148,2505.9,2505.8,0.86393035]
[1730548229589,7.15161951,2506.0,2505.9,0.27943]
[1730548230585,6.87219951,2506.0,2505.9,0.27943]
[1730548230789,3.48722,2506.0,2505.9,0.27943]
[1730548231897,0.27942,2506.0,2505.9,0.27943]
[1730548232097,3.48722,2506.0,2505.9,0.27943]
[1730548232596,7.67696916,2506.0,2505.9,0.27943]
[1730548232798,4.46916916,2506.0,2505.9,0.27943]
[1730548233092,7.67696916,2506.0,2505.9,0.27943]
[1730548233491,3.48722,2506.0,2505.9,0.27943]
[1730548233997,7.67696916,2506.0,2505.9,0.27943]
[1730548234983,4.46916916,2506.0,2505.9,0.27943]
[1730548235183,4.46916916,2506.0,2505.5,2.56073443]
[1730548235184,7.39754916,2506.0,2505.5,2.56073443]
[1730548235396,5.38438339,2505.9,2505.8,0.27944]
[1730548236694,5.70827443,2505.9,2505.8,0.27944]
[1730548236897,0.27945,2505.8,2505.7,0.27944]
[1730548237094,6.72142604,2505.8,2505.7,0.27944]
[1730548237492,3.05478443,2505.8,2505.7,0.27944]
[1730548238300,6.26258443,2505.8,2505.7,0.27944]
[1730548238597,3.05478443,2505.8,2505.7,0.27944]
[1730548238798,6.26258443,2505.8,2505.7,0.27944]
[1730548238993,9.92923029,2505.8,2505.7,0.27944]
[1730548239198,6.26258443,2505.8,2505.7,0.27944]
[1730548239692,9.92900301,2505.8,2505.7,0.27944]
[1730548240088,6.26258443,2505.8,2505.7,0.27944]
[1730548240490,9.92885881,2505.8,2505.7,0.27944]
[1730548240884,6.26258443,2505.8,2505.7,0.27944]
[1730548241287,9.92873388,2505.8,2505.7,0.27944]
[1730548242299,6.26258443,2505.8,2505.7,0.27944]
[1730548242499,9.92855685,2505.8,2505.7,0.27944]
[1730548242895,0.27947,2505.7,2505.6,0.27946]
[1730548243096,0.27947,2505.6,2505.5,0.27947]
[1730548243302,5.38411344,2505.6,2505.5,0.27947]
[1730548244195,9.37531344,2505.6,2505.5,0.27947]
[1730548245089,9.37531344,2505.6,2505.1,3.9066]
[1730548245090,0.27948,2505.5,2505.4,0.27948]
[1730548245304,2.59401443,2505.5,2505.4,0.27948]
[1730548245505,6.26022344,2505.5,2505.4,0.27948]
[1730548245805,5.98074344,2505.5,2505.4,0.27948]
[1730548246297,2.31453443,2505.5,2505.4,0.27948]
[1730548246697,6.26022344,2505.5,2505.4,0.27948]
[1730548247302,2.59401443,2505.5,2505.4,0.27948]
[1730548250195,5.73309026,2505.5,2505.4,0.27948]
[1730548251007,2.59401443,2505.5,2505.4,0.27948]
[1730548251202,5.73275866,2505.5,2505.4,0.27948]
[1730548253801,6.15545866,2505.5,2505.4,0.27948]
[1730548262507,0.2795,2505.4,2505.0,4.5261]
[1730548262710,1.43843443,2505.2,2505.1,0.27952]
[1730548263112,1.88413443,2505.2,2505.1,0.27952]
[1730548264017,0.27952,2505.1,2505.0,1.13733]
[1730548264214,0.70752,2505.1,2505.0,0.27953]
[1730548264810,0.428,2505.1,2505.0,0.27953]
[1730548265109,0.428,2505.1,2504.8,1.3006]
[1730548265317,0.428,2505.1,2504.8,0.27955]
[1730548265318,1.43843443,2504.9,2504.8,0.27955]
[1730548265719,2.16368443,2504.9,2504.8,0.27955]
[1730548266017,1.88413443,2504.9,2504.8,0.27955]
[1730548266217,2.16368443,2504.9,2504.8,0.27955]
[1730548268016,5.37148443,2504.9,2504.8,0.27955]
[1730548270216,0.27956,2504.8,2504.7,0.27956]
[1730548270416,1.71799443,2504.8,2504.7,0.27956]
[1730548270620,2.17529443,2504.8,2504.7,0.27956]
[1730548271024,0.27957,2504.7,2504.6,0.27957]
[1730548271215,0.71507,2504.7,2504.6,0.27957]
[1730548272618,3.32546649,2504.7,2504.6,0.27957]
[1730548273016,0.71507,2504.7,2504.6,0.27957]
[1730548273217,3.32496838,2504.7,2504.6,0.27957]
[1730548274126,3.32462773,2504.7,2504.6,0.27957]
[1730548274329,0.71507,2504.7,2504.6,0.27957]
[1730548275227,3.32437901,2504.7,2504.6,0.27957]
[1730548275729,2.60930901,2504.7,2504.6,0.27957]
[1730548276225,5.81710901,2504.9,2504.6,5.43123443]
[1730548276429,4.04774344,2505.1,2504.7,3.9928]
[1730548276724,1.43843443,2505.1,2505.0,0.27953]
[1730548279333,1.43843443,2505.2,2504.8,3.46383443]
[1730548279545,1.43843443,2505.2,2505.1,0.27952]
[1730548281234,4.04774344,2505.2,2505.1,0.27952]
[1730548281433,1.43843443,2505.2,2505.1,0.27952]
[1730548282238,4.04774344,2505.2,2505.1,0.27952]
[1730548287141,4.05022951,2505.2,2505.1,0.27952]
[1730548287349,1.43843443,2505.2,2505.1,0.27952]
[1730548289746,3.15637886,2505.2,2505.1,0.27952]
[1730548290045,1.71794443,2505.2,2505.1,0.27952]
[1730548290649,1.43843443,2505.2,2505.1,0.27952]
[1730548292552,3.15637886,2505.2,2505.1,0.27952]
[1730548294352,2.87686886,2505.2,2505.1,0.27952]
[1730548295149,3.15637886,2505.2,2505.1,0.27952]
[1730548295445,2.87686886,2505.2,2505.1,0.27952]
[1730548295655,4.57717866,2505.2,2505.1,0.27952]
[1730548296247,4.85668866,2505.2,2505.1,0.27952]
[1730548298257,6.29512309,2505.2,2505.1,0.27952]
[1730548298756,6.29512309,2505.2,2504.8,0.69889]
[1730548298957,0.27958,2504.7,2504.5,0.27958]
[1730548299153,2.31263443,2504.6,2504.5,0.27958]
[1730548302150,2.74253443,2504.6,2504.5,0.27958]
[1730548302544,0.27959,2504.5,2504.4,0.27959]
[1730548302749,1.71802443,2504.5,2504.4,0.2796]
[1730548303251,2.87686886,2504.5,2504.0,0.4318]
[1730548303449,1.43843443,2504.1,2504.0,1.13435]
[1730548304558,1.43843443,2504.1,2504.0,0.70255]
[1730548304759,1.43843443,2504.1,2504.0,0.27965]
[1730548307059,1.34623443,2504.1,2504.0,0.27965]
[1730548307447,1.43843443,2504.1,2504.0,0.27965]
[1730548311361,4.33203179,2504.1,2504.0,0.27965]
[1730548311960,1.43843443,2504.1,2504.0,0.27965]
[1730548312158,1.43843443,2504.1,2503.6,1.14251]
[1730548312159,4.05240179,2504.1,2503.6,1.14251]
[1730548312367,1.43843443,2503.7,2503.6,0.72289]
[1730548312755,1.43843443,2503.7,2503.6,4.27409]
[1730548313057,1.43843443,2503.7,2503.6,0.27969]
[1730548313557,2.87686886,2503.7,2503.6,0.27969]
[1730548313861,3.15654886,2503.7,2503.6,0.27969]
[1730548314261,1.71811443,2503.7,2503.6,0.27969]
[1730548314652,2.87686886,2503.7,2503.6,0.27969]
[1730548314852,3.15654886,2503.7,2503.6,0.27969]
[1730548315459,2.87686886,2503.7,2503.6,0.27969]
[1730548316461,3.15654886,2503.7,2503.6,0.27969]
[1730548316860,2.87686886,2503.7,2503.6,0.27969]
[1730548317059,3.15654886,2503.7,2503.6,0.27969]
[1730548318170,2.87686886,2503.7,2503.6,0.27969]
[1730548318869,1.43843443,2503.7,2503.6,0.27969]
[1730548324867,3.15654886,2503.7,2503.6,0.27969]
[1730548325066,1.43843443,2503.7,2503.6,0.27969]
[1730548325266,2.87686886,2503.7,2503.6,0.27969]
[1730548326072,1.43843443,2503.7,2503.6,0.27969]
[1730548327469,1.71811443,2503.7,2503.6,0.27969]
[1730548328168,1.43843443,2503.7,2503.6,0.27969]
[1730548329685,3.15654886,2503.7,2503.6,0.27969]
[1730548330471,1.43843443,2503.7,2503.6,0.27969]
[1730548330971,2.87686886,2503.7,2503.6,0.27969]
[1730548331679,1.43843443,2503.7,2503.6,0.27969]
[1730548342680,9.42111622,2503.7,2503.6,0.27969]
[1730548342870,10.31371622,2503.7,2503.6,0.27969]
[1730548343073,7.69974886,2503.7,2503.6,0.27969]
[1730548343679,7.42006886,2503.7,2503.2,3.6435]
[1730548343880,7.42006886,2503.7,2503.2,0.27972]
[1730548343881,1.43843443,2503.3,2503.2,0.27972]
[1730548344185,4.05158098,2503.3,2503.2,0.27972]
[1730548344382,5.67520098,2503.3,2503.2,0.27972]
[1730548344576,5.39548098,2503.3,2503.2,0.27972]
[1730548345080,3.06205443,2503.3,2503.2,0.27972]
[1730548345276,2.78233443,2503.3,2503.2,0.27972]
[1730548345479,5.39731259,2503.3,2503.2,0.27972]
[1730548346083,3.06205443,2503.3,2503.2,0.27972]
[1730548349377,0.27975,2503.1,2502.8,0.4444]
[1730548349580,1.43843443,2502.9,2502.8,0.72418]
[1730548349780,1.43843443,2502.9,2502.8,1.3096234]
[1730548349982,1.43843443,2502.9,2502.8,0.72418]
[1730548350377,1.89653443,2503.0,2502.9,0.27977]
[1730548350378,5.94979733,2503.0,2502.9,0.27977]
[1730548351091,1.89653443,2503.0,2502.9,0.27977]
[1730548351479,4.51079216,2503.0,2502.9,0.27977]
[1730548352382,4.51059783,2503.0,2502.9,0.27977]
[1730548353185,4.5106512,2503.0,2502.9,0.27977]
[1730548356482,4.7904112,2503.0,2502.9,0.27977]
[1730548356687,2.17629443,2503.0,2502.9,0.27977]
[1730548356890,1.89653443,2503.0,2502.9,0.27977]
[1730548357085,4.51035229,2503.0,2502.9,0.27977]
[1730548357484,4.05225229,2503.0,2502.9,0.27977]
[1730548357683,3.2078,2503.2,2502.9,0.27977]
[1730548357684,4.05225229,2503.1,2503.0,0.27976]
[1730548357885,4.05225229,2503.1,2503.0,1.19106]
[1730548359082,1.43843443,2503.1,2503.0,1.19106]
[1730548359284,4.05225229,2503.1,2503.0,1.19106]
[1730548359786,1.43843443,2503.1,2503.0,1.19106]
[1730548361383,4.05225229,2503.1,2503.0,1.19106]
[1730548361883,4.33200229,2503.1,2503.0,0.27976]
[1730548362293,4.05225229,2503.1,2503.0,0.27976]
[1730548362490,1.43843443,2503.1,2503.0,0.27976]
[1730548362789,1.89603443,2503.1,2503.0,0.27976]
[1730548363195,4.51004296,2503.1,2503.0,0.27976]
[1730548363494,1.89603443,2503.1,2503.0,0.27976]
[1730548363789,4.50992695,2503.1,2503.0,0.27976]
[1730548363996,4.50989571,2503.1,2503.0,0.27976]
[1730548364901,6.22808014,2503.1,2503.0,0.27976]
[1730548365091,3.61421886,2503.1,2503.0,0.27976]
[1730548366191,3.33446886,2503.1,2502.6,3.90731]
[1730548366385,3.33446886,2503.1,2502.9,0.27976]
[1730548366386,2.8934962,2503.0,2502.9,0.27976]
[1730548366596,2.17578443,2503.1,2502.6,3.90731]
[1730548366797,2.17578443,2503.1,2503.0,0.27976]
[1730548367602,3.61421886,2503.1,2503.0,0.27976]
[1730548369495,3.33446886,2503.1,2502.6,3.90731]
[1730548369693,1.43843443,2502.7,2502.6,3.4876]
[1730548370093,1.43843443,2502.7,2502.6,7.4836]
[1730548370702,1.43843443,2502.7,2502.6,3.4876]
[1730548370901,4.33158571,2502.7,2502.6,0.2798]
[1730548371301,1.71822443,2502.7,2502.6,0.2798]
[1730548371496,4.33085751,2502.7,2502.6,0.2798]
[1730548371797,1.71822443,2502.7,2502.6,0.2798]
[1730548376303,4.92602443,2502.7,2502.6,0.2798]